Cogmind - Beta 15 @@@ ROGUE MODE // 2025.08.29 @ 13:39:09 Player: winnking222 Result: Destroyed by FY-SPG(R) with Subdweller Machine Gun Performance ------------- Evolutions (0) 0 Regions Visited (2) 400 Robots Destroyed (28) 140 Value Destroyed (693) 693 Prototype IDs (1) 20 Alien Tech Used (0) 0 Bonus (0) 0 TOTAL SCORE: 1253 Bonus ------- None Cogmind --------- Core Integrity 0/250 Matter 300/300 Energy 275/280 System Corruption 1% Temperature Cool (0) Movement Treading (160) Location -10/Subcaves Parts ------- > --- POWER (1) -------- Heavy Ion Engine > --- PROPULSION (2) --- Light Treads Light Treads > --- UTILITY (2) ------ Large Storage Unit > --- WEAPON (2) ------- Heavy Hammer Heavy Hammer > --- INVENTORY (15) --- Subdweller Power Source Subdweller Power Source Subdweller Power Source Light Treads Light Treads Compact Wheel Subdweller Monowheel Heat Sink Sensor Array Seismic Detector Assault Rifle Subdweller Machine Gun Peak State ------------ > --- POWER ------------ Heavy Ion Engine > --- PROPULSION ------- Light Treads Light Treads > --- UTILITY ---------- Large Storage Unit Light Armor Plating > --- WEAPON ----------- Heavy Hammer Heavy Hammer > --- INVENTORY -------- Heavy Ion Engine Light Treads Light Treads Light Treads Light Treads Light Treads Light Treads Compact Wheel Heat Sink Seismic Detector Light Armor Plating Light Armor Plating Assault Rifle [Rating: 12] Favorites ----------- Power Heavy Ion Engine Engine Heavy Ion Engine Propulsion Light Treads Treads Light Treads Utility Large Storage Unit Device Seismic Detector Storage Large Storage Unit Protection Light Armor Plating Weapon Assault Rifle Energy Gun EM Pulse Gun Ballistic Gun Assault Rifle Impact Weapon Heavy Hammer Build | -11 -10 -10 ------- Run | Yrd Mat Sub Slots Evolved . | . . . Power . | . . . Propulsion . | . . . Utility . | . . . Weapon . | . . . Parts Attached 23 | 7 8 8 Power 4 | 1 2 1 Engine 4 | 1 2 1 Core . | . . . Reactor . | . . . Propulsion 6 | 2 . 4 Treads 6 | 2 . 4 Leg . | . . . Wheel . | . . . Hover . | . . . Flight . | . . . Utility 8 | 2 4 2 Device 1 | 1 . . Storage 3 | 1 2 . Processor . | . . . Hackware . | . . . Protection 4 | . 2 2 Artifact . | . . . Weapon 5 | 2 2 1 Energy Gun 1 | . 1 . Energy Cannon . | . . . Ballistic Gun 2 | 2 . . Ballistic Cannon . | . . . Launcher . | . . . Special Weapon . | . . . Impact Weapon 2 | . 1 1 Slashing Weapon . | . . . Piercing Weapon . | . . . Special Melee Weapon . | . . . Unidentified Prototypes 1 | . 1 . Parts Lost 9 | . . 9 Power 1 | . . 1 Propulsion 4 | . . 4 Utility 3 | . . 3 Weapon 1 | . . 1 Highest Loss Streak 5 | . . 5 To Critical Strikes . | . . . Average Backups 10 | 5 10 12 Power 1 | . . 1 Propulsion 3 | 2 3 5 Utility 3 | . 3 3 Weapon 1 | 1 2 1 Tool/Special . | . . . Unused Backups 16 | . 6 10 Power 4 | . 1 3 Propulsion 6 | . 2 4 Utility 4 | . 2 2 Weapon 2 | . 1 1 Tool/Special . | . . . Average Slot Usage (%) 99 | . 100 99 Engine 14 | . 14 14 Treads 27 | . 28 27 Device 9 | . 11 4 Storage 14 | . 14 14 Protection 4 | . 2 9 Energy Gun 2 | . 3 . Ballistic Gun 18 | . 23 10 Impact Weapon 6 | . . 17 Peak Build Rating 12 | 7 11 12 Average Rating 9 | 5 9 11 On Entrance 5 | . 7 10 Naked Turns . | . . . Heaviest Build 37 | 15 33 37 Greatest Support 40 | 40 40 40 Greatest Overweight (x) 1 | 1 . 1 Average Overweight (x) . | . . . Largest Inventory Capacity 15 | 8 15 15 Average Capacity 12 | 7 12 15 Most Carried 15 | 8 15 14 Average Carried 10 | 5 10 12 Final Capacity 15 | 8 15 15 Final Carried 14 | 6 14 12 Class Distribution -------------------- 100% | Mutant Dominant Class ---------------- Mutant | -10/Materials Mutant | -10/Subcaves Resources | -11 -10 -10 ----------- Run | Yrd Mat Sub Matter Collected 814 | 342 367 105 Remotely . | . . . Salvage Created 958 | 159 598 201 Parts 49 | 10 30 9 Haulers Intercepted . | . . . Recyclers Shooed . | . . . Parts Field Recycled . | . . . Retrieved Matter . | . . . Parts Self-Destructed 3 | . . 3 Prevented . | . . . Kills | -11 -10 -10 ------- Run | Yrd Mat Sub Combat Hostiles Destroyed 20 | . 15 5 Melee 3 | . . 3 Guns 14 | . 14 . AOE 1 | . 1 . Classes Destroyed 7 | 2 4 1 Builder 1 | . 1 . Tunneler 4 | 4 . . Recycler 1 | 1 . . Watcher 2 | . 2 . Swarmer 6 | . 6 . Grunt 9 | . 9 . Subdweller 5 | . . 5 Best Kill Streak 5 | 2 5 2 Combat Bots Only 4 | . 4 2 Max Kills in Single Turn 1 | 1 1 1 Gunslinging . | . . . Exploded 1 | . 1 . Melee 1 | . . 1 Uniques/NPCs Destroyed . | . . . Combat | -11 -10 -10 -------- Run | Yrd Mat Sub Hostile Shots Fired 160 | . 89 71 Missed 49 | . 33 16 Hits 111 | . 56 55 Projectile 111 | . 56 55 Critical Strikes 4 | . 1 3 Damage Taken 1862 | . 601 1261 Core 257 | . 97 160 Absorbed by Shields . | . . . Core Remaining (%) 100 | 100 . . Volleys Fired 73 | 12 56 5 Largest 2 | 2 2 2 Hottest 60 | 40 60 40 Shots Fired 145 | 24 111 10 Gun 145 | 24 111 10 Cannon . | . . . Launcher . | . . . Special . | . . . Kinetic 123 | 24 89 10 Thermal . | . . . Explosive . | . . . Electromagnetic 22 | . 22 . Robot Hit Streak 10 | 4 10 5 Robot Miss Streak 5 | 2 5 1 Penetration Max . | . . . Secondary Targets 3 | . 3 . Max Gunslinging Chain 1 | . 1 . Shots Hit Robots 111 | 15 70 26 Core Hits 39 | 5 30 4 Critical Kills 2 | 1 1 . Critical Parts Destroyed 2 | 1 . 1 Critical Strikes 5 | 2 1 2 Destroy 3 | 2 1 . Smash 2 | . . 2 Melee Attacks 30 | . . 30 Impact 30 | . . 30 Slashing . | . . . Piercing . | . . . Sneak Attacks . | . . . Combat Hostiles . | . . . Follow-up Attacks 2 | . . 2 Damage Inflicted 2015 | 198 1048 769 Guns 1318 | 198 1010 110 Cannons . | . . . Explosions 38 | . 38 . Melee 659 | . . 659 Ramming . | . . . Kinetic 1099 | 198 791 110 Thermal 38 | . 38 . Explosive . | . . . Electromagnetic 219 | . 219 . Impact 659 | . . 659 Slashing . | . . . Piercing . | . . . Highest Corruption 1 | . 1 1 Average Corruption 1 | . 1 1 Corruption Purged . | . . . Corruption Blocked . | . . . Effects 10 | . 4 6 Message Errors 2 | . 2 . Heat Flow Errors 2 | . . 2 Energy Discharges 5 | . 1 4 Data Loss (minor) 1 | . 1 . Overload Shots . | . . . Overflow Damage 67 | . . 67 Projectiles . | . . . Explosions . | . . . Melee 67 | . . 67 Knockbacks 4 | . . 4 Impact 4 | . . 4 Kinetic . | . . . Secondary . | . . . Self-Inflicted Damage . | . . . Shots . | . . . Rammed . | . . . Targets Rammed . | . . . Kicked . | . . . Crushed . | . . . Highest Temperature 243 | . 75 243 Average Temperature 31 | . 20 103 Received Heat Transfer 600 | . 240 360 Effects 1 | . . 1 Interference 1 | . . 1 Siege Activations . | . . . Martial Activations . | . . . Shielding Activations . | . . . Robots Disrupted . | . . . Combat Hostiles . | . . . Robots Corrupted 2 | . . 2 Combat Hostiles 2 | . . 2 Parts Fried 2 | . . 2 Impact Corruptions 4 | . . 4 Robots Melted . | . . . Combat Hostiles . | . . . Parts Melted . | . . . Heat Transferred 50 | . 50 . Parts Sabotaged . | . . . Parts Stolen . | . . . Parts Stripped . | . . . Power Chain Reactions 1 | . 1 . Alert | -11 -10 -10 ------- Run | Yrd Mat Sub Maximum Alert Level . | . . . Low Security (%) 100 | 100 100 . Level 1 . | . . . Level 2 . | . . . Level 3 . | . . . Level 4 . | . . . Level 5 . | . . . High Security . | . . . Max Security . | . . . Peak Influence 196 | 5 196 . Initial . | . . . Average 63 | 1 73 . Influence Increases 501 | 25 476 . Destroy 0b10 Robot/C 300 | . 300 . Destroy 0b10 Robot/NC 40 | 25 15 . Destroy Leader 84 | . 84 . Successful Hack 32 | . 32 . Disable Machine 45 | . 45 . Influence Decreases 501 | 25 391 85 Entered New Map 41 | . . 41 Time Decay 460 | 25 391 44 Squads Dispatched 4 | . 4 . Investigation 1 | . 1 . Extermination . | . . . Reinforcement 3 | . 3 . Assault . | . . . Garrison . | . . . Intercept . | . . . Searches Triggered . | . . . Construction Impeded . | . . . Haulers Reinforced . | . . . Active Scanning Responses . | . . . Cargo Convoy Interrupts . | . . . Stealth | -11 -10 -10 --------- Run | Yrd Mat Sub Distress Signals 4 | . 4 . Communications Jammed . | . . . Distress Signals . | . . . Times Spotted 32 | . 26 6 Peak Tracking Total 5 | . 5 4 Tactical Retreats . | . . . Traps | -11 -10 -10 ------- Run | Yrd Mat Sub Traps Triggered 2 | . 1 1 Indirectly . | . . . Trap Hack Attempts . | . . . Triggered . | . . . Disarmed . | . . . Reprogrammed . | . . . Reused . | . . . Traps Extracted . | . . . Installed . | . . . Triggered . | . . . Machines | -11 -10 -10 ---------- Run | Yrd Mat Sub Machines Disabled 3 | . 3 . Max in Single Turn 2 | . 2 . Machines Repaired . | . . . Machines Dismantled . | . . . Machines Sabotaged . | . . . Overloaded Fab Kills . | . . . Hacking | -11 -10 -10 --------- Run | Yrd Mat Sub Machines Accessed 4 | . 4 . Terminals 4 | . 4 . Fabricators . | . . . Repair Stations . | . . . Recycling Units . | . . . Scanalyzers . | . . . Garrison Access . | . . . Total Hacks 9 | . 9 . Successful 5 | . 5 . Failed 4 | . 4 . Catastrophic 1 | . 1 . Database Lockouts . | . . . Manual 8 | . 8 . Terminals 9 | . 9 . Fabricators . | . . . Repair Stations . | . . . Recycling Units . | . . . Scanalyzers . | . . . Garrison Access . | . . . Terminal Hacks . | . . . Fabricator Hacks . | . . . Repair Station Hacks . | . . . Recycling Unit Hacks . | . . . Scanalyzer . | . . . Garrison Access Hacks . | . . . Unauthorized Hacks 5 | . 5 . Terminals 5 | . 5 . Botnet 2 | . 2 . Skim 3 | . 3 . Fabricators . | . . . Repair Stations . | . . . Recycling Units . | . . . Scanalyzers . | . . . Garrison Access . | . . . Data Cores Recovered . | . . . Used . | . . . Hacking Detections 2 | . 2 . Full Trace Events 1 | . 1 . Feedback Events . | . . . Feedback Blocked . | . . . Robot Schematics Acquired . | . . . Robots Built . | . . . Authchips . | . . . Time . | . . . Total Robot Build Rating . | . . . Part Schematics Acquired . | . . . Parts Built . | . . . Authchips . | . . . Time . | . . . Total Part Build Rating . | . . . Parts Repaired . | . . . Time . | . . . Parts Recycled . | . . . Recycled Matter . | . . . Retrieved Matter . | . . . Retrieved Components . | . . . Parts Scanalyzed . | . . . Part Schematics Acquired . | . . . Parts Damaged . | . . . Bothacking | -11 -10 -10 ------------ Run | Yrd Mat Sub Used RIF Installer . | . . . Robots Hacked . | . . . Non-combat . | . . . Combat . | . . . Robot Hacks Applied . | . . . Relay Couplers Released . | . . . Fabnet Peak Effective % . | . . . Robots Rewired . | . . . Allies Hacked . | . . . Hacks Repelled . | . . . Allies | -11 -10 -10 -------- Run | Yrd Mat Sub Total Allies . | . . . Largest Group . | . . . Highest-Rated Group . | . . . Highest-Rated Ally . | . . . Total Orders . | . . . Ally Attacks . | . . . Total Damage . | . . . Kills . | . . . Allies Corrupted . | . . . Allies Melted . | . . . Intel | -11 -10 -10 ------- Run | Yrd Mat Sub Active Infowar (turns) 1203 | 61 947 195 Seismic 1203 | 61 947 195 Robot Analysis Total . | . . . Derelict Logs Recovered . | . . . Drone Launches . | . . . Drone Recoveries . | . . . Exploration | -11 -10 -10 ------------- Run | Yrd Mat Sub Turns Passed 1952 | 186 1161 605 Spaces Moved 970 | 90 582 298 Core 12 | 12 . . Treads 958 | 78 582 298 Legs . | . . . Wheels . | . . . Hover . | . . . Flight . | . . . Fastest Speed 50 | 50 160 160 Average Speed 158 | 146 160 160 Slowest Speed 240 | 160 160 240 Overloaded Moves . | . . . Propulsion Burnouts . | . . . Robots Hopped . | . . . Potential Cave-ins . | . . . Cave-ins Triggered . | . . . Exploration Rate (%) 42 | 4 94 28 Regions Visited 2 Branch Regions 1 Pre-discovered Areas . | . . . Known Exits Taken . | . . . Unknown Exits Taken 2 | 1 1 . Scrap Searched . | . . . Spaces Dug 2 | . . 2 Terrain Destroyed 2 | . . 2 Melee 2 | . . 2 Projectile . | . . . AOE . | . . . Terrain Rammed . | . . . Walls Destroyed . | . . . Machines Disabled . | . . . Actions | -11 -10 -10 --------- Run | Yrd Mat Sub Total 1188 | 120 702 366 Wait 45 | . 25 20 Move 968 | 89 581 298 Hop . | . . . Pick Up 35 | 12 17 6 Fast Attach 3 | 1 2 . Attach 15 | 6 1 8 Detach . | . . . Swap 10 | . 8 2 Drop 12 | . 12 . Fire 73 | 12 56 5 Melee 27 | . . 27 Ram . | . . . Kick . | . . . Crush . | . . . Escape Stasis . | . . . Rewire . | . . . Trap . | . . . Miscellaneous . | . . . Route ------- -11/Scrapyard -10/Materials (discovered 5 exits: [*Mat x3] / [*Min] / [*Sub]) -10/Subcaves (discovered 1 exit: [*Mat]) History --------- Turn | Location | Event 24 | -11/Scrapyard | Discovered new exit (range 16) 187 | -11/Scrapyard | Entered Materials 278 | -10/Materials | Discovered new exit (range 16) 302 | -10/Materials | Build established: Mutant 694 | -10/Materials | Discovered new exit (range 16) 1085 | -10/Materials | Discovered new exit (range 15) 1155 | -10/Materials | Discovered new exit (range 8) 1269 | -10/Materials | Discovered new exit (range 16) 1348 | -10/Materials | Entered Subcaves 1349 | -10/Subcaves | Approached by a straggling Scientist 1563 | -10/Subcaves | Core integrity fell below 50% 1572 | -10/Subcaves | Discovered new exit (range 7) 1600 | -10/Subcaves | Core integrity fell below 20% 1611 | -10/Subcaves | Lost 5 parts (1p2n1u1w) 1738 | -10/Subcaves | Ambushed by Subdweller buried in earth 1953 | -10/Subcaves | Destroyed by FY-SPG(R) with Subdweller Machine Gun Last Messages --------------- 01638_ Acquired 47 matter. 01641_ Acquired Sub. Power Source. 01644_ Acquired 29 matter. 01647_ Acquired Sensor Array. 01653_ Acquired 9 matter. 01656_ Acquired Sub. Power Source. 01659_ Acquired Sub. Monowheel. 01739_ L8-TCR(R): "NOSTUCKSUB!" 01746_ Lgt. Treads destroyed. 01747_ L8-TCR(R) destroyed. 01753_ System corrupted: Energy discharge (-64). 01754_ Acquired Sub. Power Source. 01759_ Acquired 10 matter. 01810_ System corrupted: Energy discharge (-78). 01839_ System corrupted: Heat flow error (+115). 01934_ FY-SPG(R) angrily emerges from the Twisted Machinery. 01942_ FY-SPG(R) knocked back. 01951_ Lgt. Armor Plating destroyed. 01953_ Destroyed Sub. Optics. 01953_ FY-SPG(R) system corrupted by crushing effect. Map ----- +----------------------------------------------------+ | ??????????????????????????????????????????????? | | ??????????????????????????????????????????????? | | ??????????????????????????????????????????????? | | ??????????????????????????????????????????????? | | ??????????????????????????????????????????????? | | ??????????????????????????????????????????????? | | ??????????????????????????????????????????????? | | ??????????????????????????????????????????????? | | ??????????????????????????????????????????????? | | ??????????????????????????????????????????????? | | ??????????????????????????????????????????????? | | ??????????????????????????????????????????????? | | ??????????????????????????????????????????????? | | ??????????????????????????????????????????????? | | ??????????????????????????????????????????????? | | ??????????????????????????????????????????????? | | ??????????????????????????????????????????????? | | ??????????????????????????????????????????????? | | ??????????????????????????????????????????????? | | ??????????????????????????????????????????????? | | ??????????????????????????????????????????????? | | ??????????????????######??????????????????????? | | ?????????????#??### ##?????????????????????? | | ?????????????# #$#< #??## ?????????????? | | ??????????????# & R##"" #?????????????? | | ?????????????????##< @ "" #??????????????? | | ?????????????????# ## ###???????????????? | | ?????????????????### ##?????????????????????? | | ????????????????### #??????????????????????? | | ???????????????## #??????????????????????? | | ???????????????# ##??????????????????????? | | ???????????????## ###?????????????????????? | | ????????????????### #??##?????????????????? | | ??????????????????# ##??# ????????????????? | | ??????????????????# ##??## ????????????????? | | ??????????????????# ##???# ???????????????? | | ??????????????????# ##???? #??????????????? | | ??????????????????# #???? ####??????????? | | ??????????????????## #### ## ??????????? | | ???????????????????## ## #??# ??????###?? | | ???????????????????## ## #### ####?## ##? | | ???????????????????# ## ## ### ## | | ??????????????????## ## # | | ?????????????????## #### | | ????????????????## ## ## # # | | ????????????????# ##??? ### ### ##### | | ????????????????# ##???????## #### | | ????????????????# ##????????# ######## | | ???????????????## #???????## ##????? | | ???????????????# ##?????## #????? | +----------------------------------------------------+ Best States ------------- Heat Dissipation 25 Energy Generation 14 Energy Capacity 280 Matter Stores 300 Matter Capacity 300 Sight Range 16 Terrain Scan Density 10 Armor Coverage 150 Evasion (%) 50 Recoil Reduction 2 Item Schematics ----------------- None Robot Schematics ------------------ None Fabricated ------------ Nothing Repaired ---------- Nothing Alien Tech Used ----------------- None Achievements -------------- None Challenges ------------ None Game ------ Seed ColdDamperStabilizer Manual? 0 Play Time 00:13:09 Cumulative 154.3 hours Start 2025.08.29 @ 13:28:53 End 2025.08.29 @ 13:39:09 Sessions 1 Manual Loads 0 Difficulty Rogue Special Mode None Game No. 218 Rogue 218 Adventurer 0 Explorer 0 Win Type - Total 1 Types 1/0/0/0/0/0/0/0/0/0 Lore% 71 Gallery% 64 Achievement% 55 Wizard Run 0 Options --------- Layout 0 ASCII 0 Keyboard 0 Movement Mouse Keybinds 0 Fullscreen 1 Font 16/SmallcapsGlow Map View 75x55 Zoom Use 0% Tactical HUD 1 Map Filters NONE Filters NONE Steam 1 RUN: 8b11a479-a504-4e2c-b0b0-81d0fe7b010f